Cogmind - Beta 14 @@@ ROGUE MODE // 2024.10.18 @ 15:33:29 Player: Jelly Result: Self-destructed Performance ------------- Evolutions (2) 1000 Regions Visited (3) 600 Robots Destroyed (27) 135 Value Destroyed (823) 823 Prototype IDs (0) 0 Alien Tech Used (0) 0 Bonus (0) 0 TOTAL SCORE: 2558 Bonus ------- None Cogmind --------- Core Integrity 535/550 Matter 266/300 Energy 250/250 System Corruption 0% Temperature Cool (0) Movement Treading (160) Location -8/Materials Parts ------- > --- POWER (1) -------- Ion Engine > --- PROPULSION (3) --- Light Treads Light Treads Light Treads > --- UTILITY (4) ------ Small Storage Unit Visual Processing Unit Improved Sensor Array Light Armor Plating > --- WEAPON (3) ------- Heavy Assault Rifle Heavy Assault Rifle Scythe > --- INVENTORY (8) ---- Ion Engine Light Treads Light Treads Light Treads Wheel Armored Wheel Advanced Targeting Computer Assault Rifle Peak State ------------ > --- POWER ------------ Ion Engine > --- PROPULSION ------- Light Treads Light Treads Light Treads > --- UTILITY ---------- Small Storage Unit Visual Processing Unit Improved Sensor Array Light Armor Plating > --- WEAPON ----------- Heavy Assault Rifle Heavy Assault Rifle Scythe > --- INVENTORY -------- Ion Engine Light Treads Light Treads Light Treads Wheel Armored Wheel Advanced Targeting Computer Assault Rifle [Rating: 19] Favorites ----------- Power Light Ion Engine Engine Light Ion Engine Propulsion Aluminum Leg Treads Light Treads Leg Aluminum Leg Utility Small Storage Unit Device Sensor Array Storage Small Storage Unit Processor Visual Processing Unit Protection Light Armor Plating Weapon Assault Rifle Ballistic Gun Assault Rifle Slashing Weapon Scythe Build | -11 -10 -9 -8 ------- Run | Yrd Mat Mat Mat Slots Evolved 4 | . . 2 2 Power . | . . . . Propulsion 1 | . . . 1 Utility 2 | . . 1 1 Weapon 1 | . . 1 . Parts Attached 23 | . 2 17 4 Power 3 | . . 3 . Engine 3 | . . 3 . Core . | . . . . Reactor . | . . . . Propulsion 7 | . 1 3 3 Treads 5 | . . 2 3 Leg 2 | . 1 1 . Wheel . | . . . . Hover . | . . . . Flight . | . . . . Utility 5 | . . 4 1 Device 3 | . . 3 . Storage . | . . . . Processor 1 | . . 1 . Hackware . | . . . . Protection 1 | . . . 1 Artifact . | . . . . Weapon 8 | . 1 7 . Energy Gun . | . . . . Energy Cannon . | . . . . Ballistic Gun 7 | . 1 6 . Ballistic Cannon . | . . . . Launcher . | . . . . Special Weapon . | . . . . Impact Weapon . | . . . . Slashing Weapon 1 | . . 1 . Piercing Weapon . | . . . . Special Melee Weapon . | . . . . Unidentified Prototypes . | . . . . Parts Lost 3 | . 1 2 . Power 1 | . . 1 . Propulsion 1 | . . 1 . Utility . | . . . . Weapon 1 | . 1 . . Highest Loss Streak 1 | . 1 1 . To Critical Strikes . | . . . . Average Slot Usage (%) 92 | . 84 93 100 Engine 11 | . 14 10 9 Treads 7 | . . 6 27 Leg 15 | . 28 14 . Device 8 | . . 11 9 Storage 11 | . 14 11 9 Processor 4 | . . 5 9 Ballistic Gun 29 | . 27 32 18 Slashing Weapon 1 | . . . 9 Peak Build Rating 19 | . 6 16 19 Average Rating 10 | . 5 10 18 On Entrance 8 | 6 6 6 16 Naked Turns . | . . . . Heaviest Build 22 | 11 11 21 22 Greatest Support 60 | 20 20 40 60 Greatest Overweight (x) 2 | . . 2 . Average Overweight (x) . | . . . . Largest Inventory Capacity 8 | . 8 8 8 Average Capacity 8 | . 8 8 8 Most Carried 8 | . 7 8 8 Average Carried 7 | . 6 7 7 Final Capacity 8 | 8 8 8 8 Final Carried 8 | 6 7 8 8 Class Distribution -------------------- 44% | Skirmisher 24% | Mutant 16% | Scavenger-Skirmisher 10% | Scavenger-Mutant 3% | Gunner Dominant Class ---------------- Mutant | -10/Materials Skirmisher | -9/Materials Scavenger-Mutant | -8/Materials Resources | -11 -10 -9 -8 ----------- Run | Yrd Mat Mat Mat Matter Collected 975 | 200 112 507 156 Remotely . | . . . . Salvage Created 1186 | . 320 710 156 Parts 59 | . 20 34 5 Haulers Intercepted 4 | . . 4 . Recyclers Shooed 2 | . . 2 . Parts Field Recycled . | . . . . Retrieved Matter . | . . . . Parts Self-Destructed . | . . . . Prevented . | . . . . Kills | -11 -10 -9 -8 ------- Run | Yrd Mat Mat Mat Combat Hostiles Destroyed 21 | . 7 11 3 Guns 21 | . 7 11 3 Classes Destroyed 8 | . 1 7 . Worker 1 | . . 1 . Hauler 4 | . . 4 . Mechanic 1 | . . 1 . Swarmer 1 | . . 1 . Grunt 15 | . 7 6 2 Brawler 2 | . . 1 1 Duelist 1 | . . 1 . Sentry 2 | . . 2 . Best Kill Streak 4 | . 4 3 3 Combat Bots Only 4 | . 4 2 3 Max Kills in Single Turn 1 | . 1 1 1 Gunslinging . | . . . . Exploded . | . . . . Melee . | . . . . Uniques/NPCs Destroyed . | . . . . Combat | -11 -10 -9 -8 -------- Run | Yrd Mat Mat Mat Hostile Shots Fired 128 | . 49 51 28 Missed 37 | . 13 15 9 Damage Taken 1183 | . 474 475 234 Core 152 | . 91 46 15 Absorbed by Shields . | . . . . Core Remaining (%) 83 | 100 63 88 . Volleys Fired 92 | . 29 53 10 Largest 3 | . 2 3 2 Hottest 66 | . 40 66 46 Shots Fired 230 | . 55 155 20 Gun 230 | . 55 155 20 Cannon . | . . . . Launcher . | . . . . Special . | . . . . Kinetic 230 | . 55 155 20 Thermal . | . . . . Explosive . | . . . . Electromagnetic . | . . . . Robot Hit Streak 14 | . 14 12 12 Robot Miss Streak 5 | . 4 4 5 Penetration Max . | . . . . Secondary Targets 2 | . . 2 . Max Gunslinging Chain 1 | . . 1 . Shots Hit Robots 147 | . 42 93 12 Core Hits 57 | . 19 32 6 Critical Kills . | . . . . Critical Parts Destroyed 1 | . . 1 . Critical Strikes 2 | . . 2 . Destroy 2 | . . 2 . Melee Attacks 1 | . . 1 . Impact . | . . . . Slashing 1 | . . 1 . Piercing . | . . . . Sneak Attacks . | . . . . Combat Hostiles . | . . . . Follow-up Attacks . | . . . . Damage Inflicted 1893 | . 458 1223 212 Guns 1880 | . 456 1223 201 Cannons . | . . . . Explosions . | . . . . Melee . | . . . . Ramming 13 | . 2 . 11 Kinetic 1880 | . 456 1223 201 Thermal . | . . . . Explosive . | . . . . Electromagnetic . | . . . . Impact . | . . . . Slashing . | . . . . Piercing . | . . . . Highest Corruption . | . . . . Average Corruption . | . . . . Corruption Purged . | . . . . Corruption Blocked . | . . . . Overload Shots . | . . . . Overflow Damage . | . . . . Projectiles . | . . . . Explosions . | . . . . Melee . | . . . . Knockbacks 1 | . . . 1 Impact 1 | . . . 1 Kinetic . | . . . . Secondary . | . . . . Self-Inflicted Damage . | . . . . Shots . | . . . . Rammed 3 | . . 2 1 Targets Rammed 4 | . 1 2 1 Kicked 1 | . 1 . . Crushed . | . . . . Highest Temperature 18 | . 18 18 1 Average Temperature 8 | . 7 9 1 Received Heat Transfer 480 | . 246 171 63 Siege Activations . | . . . . Robots Corrupted . | . . . . Combat Hostiles . | . . . . Parts Fried . | . . . . Impact Corruptions . | . . . . Robots Melted . | . . . . Combat Hostiles . | . . . . Parts Melted . | . . . . Heat Transferred . | . . . . Parts Sabotaged . | . . . . Parts Stolen . | . . . . Parts Stripped . | . . . . Power Chain Reactions . | . . . . Alert | -11 -10 -9 -8 ------- Run | Yrd Mat Mat Mat Peak Influence 309 | . 205 309 246 Initial 130 | . . 86 130 Average 135 | . 74 142 196 Maximum Alert Level 1 | . 1 1 1 Low Security (%) 72 | . 91 72 39 Level 1 27 | . 8 27 60 Level 2 . | . . . . Level 3 . | . . . . Level 4 . | . . . . Level 5 . | . . . . High Security . | . . . . Max Security . | . . . . Squads Dispatched 3 | . 1 2 . Investigation 1 | . . 1 . Extermination . | . . . . Reinforcement 2 | . 1 1 . Assault . | . . . . Garrison . | . . . . Intercept . | . . . . Searches Triggered . | . . . . Construction Impeded . | . . . . Haulers Reinforced . | . . . . Active Scanning Responses . | . . . . Cargo Convoy Interrupts . | . . . . Stealth | -11 -10 -9 -8 --------- Run | Yrd Mat Mat Mat Distress Signals 3 | . 1 2 . Communications Jammed . | . . . . Distress Signals . | . . . . Times Spotted 43 | . 11 21 11 Peak Tracking Total 6 | . 4 5 6 Tactical Retreats 3 | . . 3 . Traps | -11 -10 -9 -8 ------- Run | Yrd Mat Mat Mat Traps Triggered 1 | . 1 . . Indirectly . | . . . . Trap Hack Attempts . | . . . . Triggered . | . . . . Disarmed . | . . . . Reprogrammed . | . . . . Reused . | . . . . Traps Extracted . | . . . . Installed . | . . . . Triggered . | . . . . Machines | -11 -10 -9 -8 ---------- Run | Yrd Mat Mat Mat Machines Disabled 2 | . . 2 . Max in Single Turn 1 | . . 1 . Machines Repaired . | . . . . Machines Dismantled . | . . . . Machines Sabotaged . | . . . . Overloaded Fab Kills . | . . . . Hacking | -11 -10 -9 -8 --------- Run | Yrd Mat Mat Mat Machines Accessed 2 | . . 2 . Terminals 2 | . . 2 . Fabricators . | . . . . Repair Stations . | . . . . Recycling Units . | . . . . Scanalyzers . | . . . . Garrison Access . | . . . . Total Hacks 12 | . . 12 . Successful 8 | . . 8 . Failed 4 | . . 4 . Catastrophic . | . . . . Database Lockouts . | . . . . Manual 9 | . . 9 . Terminals 12 | . . 12 . Fabricators . | . . . . Repair Stations . | . . . . Recycling Units . | . . . . Scanalyzers . | . . . . Garrison Access . | . . . . Terminal Hacks 5 | . . 5 . Locate Traps 2 | . . 2 . Dispatch Records 1 | . . 1 . Hauler Manifests 1 | . . 1 . Zone Layout 1 | . . 1 . Fabricator Hacks . | . . . . Repair Station Hacks . | . . . . Recycling Unit Hacks . | . . . . Scanalyzer . | . . . . Garrison Access Hacks . | . . . . Unauthorized Hacks 3 | . . 3 . Terminals 3 | . . 3 . Track 2 | . . 2 . Botnet 1 | . . 1 . Fabricators . | . . . . Repair Stations . | . . . . Recycling Units . | . . . . Scanalyzers . | . . . . Garrison Access . | . . . . Data Cores Recovered . | . . . . Used . | . . . . Hacking Detections 2 | . . 2 . Full Trace Events 1 | . . 1 . Feedback Events . | . . . . Feedback Blocked . | . . . . Robot Schematics Acquired . | . . . . Robots Built . | . . . . Authchips . | . . . . Time . | . . . . Total Robot Build Rating . | . . . . Part Schematics Acquired . | . . . . Parts Built . | . . . . Authchips . | . . . . Time . | . . . . Total Part Build Rating . | . . . . Parts Repaired . | . . . . Time . | . . . . Parts Recycled . | . . . . Recycled Matter . | . . . . Retrieved Matter . | . . . . Retrieved Components . | . . . . Parts Scanalyzed . | . . . . Part Schematics Acquired . | . . . . Parts Damaged . | . . . . Bothacking | -11 -10 -9 -8 ------------ Run | Yrd Mat Mat Mat Used RIF Installer . | . . . . Robots Hacked . | . . . . Non-combat . | . . . . Combat . | . . . . Robot Hacks Applied . | . . . . Relay Couplers Released . | . . . . Fabnet Peak Effective % . | . . . . Robots Rewired . | . . . . Allies Hacked . | . . . . Hacks Repelled . | . . . . Allies | -11 -10 -9 -8 -------- Run | Yrd Mat Mat Mat Total Allies . | . . . . Largest Group . | . . . . Highest-Rated Group . | . . . . Highest-Rated Ally . | . . . . Total Orders . | . . . . Ally Attacks . | . . . . Total Damage . | . . . . Kills . | . . . . Allies Corrupted . | . . . . Allies Melted . | . . . . Intel | -11 -10 -9 -8 ------- Run | Yrd Mat Mat Mat Robot Analysis Total . | . . . . Derelict Logs Recovered . | . . . . Drone Launches . | . . . . Drone Recoveries . | . . . . Exploration | -11 -10 -9 -8 ------------- Run | Yrd Mat Mat Mat Turns Passed 1474 | . 289 1031 154 Spaces Moved 597 | 1 158 366 72 Core . | . . . . Treads 211 | . . 139 72 Legs 386 | 1 158 227 . Wheels . | . . . . Hover . | . . . . Flight . | . . . . Fastest Speed 120 | 120 120 120 160 Average Speed 139 | 120 120 144 160 Slowest Speed 260 | 120 120 260 160 Overloaded Moves . | . . . . Propulsion Burnouts . | . . . . Robots Hopped . | . . . . Cave-ins Triggered . | . . . . Exploration Rate (%) 20 | 2 34 36 11 Regions Visited 3 Branch Regions . Pre-discovered Areas . | . . . . Known Exits Taken . | . . . . Unknown Exits Taken 3 | 1 1 1 . Scrap Searched . | . . . . Spaces Dug 1 | . . 1 . Terrain Destroyed 1 | . . 1 . Melee 1 | . . 1 . Projectile . | . . . . AOE . | . . . . Terrain Rammed . | . . . . Walls Destroyed . | . . . . Machines Disabled . | . . . . Actions | -11 -10 -9 -8 --------- Run | Yrd Mat Mat Mat Total 1050 | . 207 754 89 Wait 309 | . 17 292 . Move 594 | . 157 365 72 Hop . | . . . . Pick Up 11 | . 1 9 1 Fast Attach 8 | . . 8 . Attach 5 | . 1 2 2 Detach . | . . . . Swap 10 | . 1 7 2 Drop 16 | . . 15 1 Fire 92 | . 29 53 10 Melee 1 | . . 1 . Ram . | . . . . Kick 1 | . 1 . . Crush 3 | . . 2 1 Escape Stasis . | . . . . Rewire . | . . . . Trap . | . . . . Miscellaneous . | . . . . Route ------- -11/Scrapyard -10/Materials -9/Materials -8/Materials History --------- Turn | Location | Event 1 | -11/Scrapyard | Discovered new exit (range 0) 1 | -11/Scrapyard | Entered Materials 272 | -10/Materials | Discovered new exit (range 16) 290 | -10/Materials | Entered another Materials area 290 | -9/Materials | Evolved 2 slots: Utility x1, Weapon x1 614 | -9/Materials | Build established: Skirmisher 1302 | -9/Materials | Discovered new exit (range 10) 1321 | -9/Materials | Entered another Materials area 1321 | -8/Materials | Evolved 2 slots: Propulsion x1, Utility x1 1475 | -8/Materials | Self-destructed Last Messages --------------- 01382_ K-01 Serf collects debris. 01383_ Acquired 60 matter. 01385_ K-01 Serf collects debris. 01388_ G-47 Trooper destroyed. 01388_ K-01 Serf collects debris. 01392_ Acquired 53 matter. 01398_ K-01 Serf collects debris. 01426_ Dropped Wheel. 01426_ Acquired Adv. Targeting Computer. 01437_ K-01 Serf collects debris. 01439_ Slammed into K-01 Serf. 01439_ K-01 Serf knocked back. 01439_ R-06 Scavenger collects Lgt. Nuclear Core. 01440_ Acquired 43 matter. 01444_ R-06 Scavenger collects Aluminum Leg. 01449_ K-01 Serf cleans the Atomic Centrifuge. 01452_ U-05 Engineer builds a Door. 01452_ K-01 Serf cleans the Atomic Centrifuge. Map ----- +----------------------------------------------------+ | ?????????????????????????????????????????????????? | | ?????????????????????????????????????????????????? | | ?????????????????????????????????????????????????? | | ?????????????????????????????????????????????????? | | ?????????????????????????????????????????????????? | | ?????????????????????????????????????????????????? | | ?????????????????????????????????????????????????? | | ?????????????????????????????????????????????????? | | ?????????????????????????????????????????????????? | | ?????????????????????????????????????????????????? | | ?????????????????????????????????????????????????? | | ?????????????????????????????????????????????????? | | ?????????????????????????????+#??????????????????? | | ???????????????????????????? ??????????????????? | | ???????????????????????????? ? ?????????????????? | | ???????????????????????????? ""?????????????????? | | ???????????????????????????? ""??? ????????????? | | ????????????????###+##?????? """? #????????????? | | ????????????????# ?????? ? #????????????? | | ????????????????# ss ???? #????????????? | | ????????????????# [[???? """ [!#????????????? | | ????????????????# [[ ??? "G [!#????????????? | | ????????????????# s [[ ??? """ #????????????? | | ????????????????# ?? #????????????? | | ????????????????# ##gg +????????????? | | ????????????????# @ #????????????? | | ????????????????# # #????????????? | | ????????????????########## """ #????????????? | | ??????????????????????# "T" #????????????? | | ??????????????????????# #????????????? | | ??????????????????????# [ #????????????? | | ??????????????????????# #????????????? | | ??????????????????????# #????????????? | | ??????????????????????# #????????????? | | ??????????????????????# """ #????????????? | | ????????????########### """ #????????????? | | ????????????# = # """ #????????????? | | ????????????# # #????????????? | | ????????????# # # ????????? | | ????????????# """ """ +^ + ????????? | | ????????????# """ """ # = # ??????????? | | ????????????# """ """ # ##+#####+##????????????? | | ????????????# # #??????????????????????? | | ????????????# =# #??????????????????????? | | ????????????########### #??????????????????????? | | ??????????????????????# #??????????????????????? | | ??????????????????????# #??????????????????????? | | ??????????????????????# #??????????????????????? | | ??????????????????????# #??????????????????????? | | ??????????????????????# #??????????????????????? | +----------------------------------------------------+ Best States ------------- Heat Dissipation 38 Energy Generation 12 Energy Capacity 265 Matter Stores 300 Matter Capacity 300 Sight Range 18 Robot Scan Range 15 Terrain Scan Density 10 Armor Coverage 150 Evasion (%) 55 Recoil Reduction 3 Item Schematics ----------------- None Robot Schematics ------------------ None Fabricated ------------ Nothing Alien Tech Used ----------------- None Achievements -------------- None Challenges ------------ None Game ------ Seed OvertunedGrapheneBank Manual? 0 Play Time 00:14:01 Cumulative 28.7 hours Start 2024.08.07 @ 11:01:47 End 2024.10.18 @ 15:33:29 Sessions 6 Manual Loads 0 Difficulty Rogue Special Mode None Game No. 40 Rogue 40 Adventurer 0 Explorer 0 Win Type - Total 1 Types 1/0/0/0/0/0/0/0/0 Lore% 12 Gallery% 31 Achievement% 32 Wizard Run 0 Options --------- Layout 1 ASCII 0 Keyboard 1 Movement Numpad Keybinds 0 Fullscreen 1 Font 32/SmallcapsGlow Map View 50x35 Zoom Use 0% Tactical HUD 1 Map Filters NONE Filters NONE Steam 1 RUN: c8f7135e-fbfb-4ed9-8a39-ddf11cf4ae1e